[Event "FIDE Chesscom Grand Swiss 2019"]
[Site "Douglas-Isle of Man"]
[Date "2019.10.19"]
[Round "9.40"]
[White "Bulmaga, Irina"]
[Black "Jansa, Vlastimil"]
[Result "1-0"]
[ECO "B54"]
[WhiteElo "2442"]
[BlackElo "2452"]
[Annotator "ChessBase"]
[PlyCount "138"]
[EventDate "2019.10.10"]
[EventType "swiss"]
[EventCountry "GBR"]
[SourceTitle "playchess.com"]
[Source "ChessBase"]
[SourceQuality "1"]
[TimeControl "40/6000+30:20/3000+30:900+30"]

1. e4 {[%emt 0:00:00]} c5 {[%emt 0:00:00]} 2. Nf3 {[%emt 0:00:00]} Nc6 {[%emt 0:00:00]} 3. d4 {[%emt 0:00:00]} cxd4 {[%emt 0:00:00]} 4. Nxd4 {[%emt 0:00:05]} e6 {[%emt 0:00:43]} 5. Nc3 {[%emt 0:00:09]} d6 {[%emt 0:00:19]} 6. g4 {[%emt 0:00:54]} a6 {[%emt 0:03:31]} 7. Be3 {[%emt 0:06:00]} Nge7 {[%emt 0:01:29]} 8. Nb3 {[%emt 0:14:16]} b5 {[%emt 0:01:13]} 9. Bg2 {[%emt 0:03:07]} Bb7 {[%emt 0:01:52]} 10. Qe2 {[%emt 0:02:30]} Nc8 {[%emt 0:10:43]} 11. O-O-O {[%emt 0:08:48]} Qc7 {[%emt 0:02:03]} 12. f4 {[%emt 0:02:51]} Nb6 {[%emt 0:03:37]} 13. e5 {[%emt 0:06:19]} Nc4 {[%emt 0:37:33]} 14. Rhf1 {[%emt 0:11:51]} O-O-O {[%emt 0:06:27]} 15. exd6 {[%emt 0:02:38]} Bxd6 {[%emt 0:02:41]} 16. Ne4 {[%emt 0:03:24]} Nxe3 {[%emt 0:16:44]} 17. Qxe3 {[%emt 0:03:53]} Nb4 {[%emt 0:00:17]} 18. Nxd6+ {[%emt 0:00:46]} Rxd6 {[%emt 0:00:05]} 19. Bxb7+ {[%emt 0:01:52]} Kxb7 {[%emt 0:00:19]} 20. Qe4+ {[%emt 0:04:48]} Nd5 {[%emt 0:00:21]} 21. f5 {[%emt 0:00:53]} Rc8 {[%emt 0:04:05]} 22. fxe6 {[%emt 0:01:37]} fxe6 {[%emt 0:00:03]} 23. Rf2 {[%emt 0:06:31]} Kb8 {[%emt 0:01:19]} 24. g5 {[%emt 0:03:43]} Qb6 {[%emt 0:03:45]} 25. Rfd2 {[%emt 0:01:56]} g6 {[%emt 0:02:24]} 26. Qe5 {[%emt 0:02:44]} Kb7 {[%emt 0:00:49]} 27. Nd4 {[%emt 0:00:59]} Nc7 {[%emt 0:01:02]} 28. Qg7 {[%emt 0:05:01]} Kb8 {[%emt 0:01:47]} 29. Qe5 {[%emt 0:03:32]} Rd5 {[%emt 0:01:29]} 30. Qe4 {[%emt 0:02:04]} Rcd8 {[%emt 0:01:16]} 31. Rd3 {[%emt 0:01:11]} R8d7 {[%emt 0:01:12]} 32. h4 {[%emt 0:01:24]} R7d6 {[%emt 0:00:47]} 33. a3 {[%emt 0:03:07]} Rd7 {[%emt 0:00:20]} 34. Kb1 {[%emt 0:00:28]} R7d6 {[%emt 0:00:33]} 35. Nf3 {[%emt 0:00:49]} Qc5 {[%emt 0:02:55]} 36. h5 {[%emt 0:01:17]} Rxd3 {[%emt 0:01:13]} 37. Rxd3 {[%emt 0:02:55]} Rxd3 {[%emt 0:00:07]} 38. cxd3 {[%emt 0:00:39]} Qf2 {[%emt 0:01:48]} 39. hxg6 {[%emt 0:01:22]} hxg6 {[%emt 0:00:06]} 40. Ka2 {[%emt 0:02:52]} Nd5 {[%emt 0:01:57]} 41. Qe5+ {[%emt 0:07:47]} Nc7 {[%emt 0:16:35]} 42. Nd4 {[%emt 0:03:50]} Ka8 {[%emt 0:20:25]} 43. Qe4+ {[%emt 0:06:13]} Kb8 {[%emt 0:05:15]} 44. Nc6+ {[%emt 0:00:37]} Kc8 {[%emt 0:00:21]} 45. Qxg6 {[%emt 0:06:00]} Qc5 {[%emt 0:01:45]} 46. Qg8+ {[%emt 0:02:50]} Kb7 {[%emt 0:03:41]} 47. Na5+ {[%emt 0:00:39]} Ka7 {[%emt 0:00:12]} 48. Qd8 {[%emt 0:01:29]} Qd5+ {[%emt 0:02:18]} 49. Qxd5 {[%emt 0:00:28]} Nxd5 {[%emt 0:00:12]} 50. g6 {[%emt 0:03:26]} Kb6 {[%emt 0:00:11]} 51. g7 {[%emt 0:00:39]} Ne7 {[%emt 0:00:44]} 52. b4 {[%emt 0:00:28]} Kc7 {[%emt 0:00:16]} 53. Kb3 {[%emt 0:00:40]} Kd6 {[%emt 0:00:20]} 54. Nb7+ {[%emt 0:02:19]} Kd5 {[%emt 0:00:07]} 55. Nc5 {[%emt 0:04:15]} a5 {[%emt 0:00:15]} 56. Ne4 {[%emt 0:00:15]} a4+ {[%emt 0:01:11]} 57. Kc2 {[%emt 0:00:02]} Ke5 {[%emt 0:03:00]} 58. Nc3 {[%emt 0:00:15]} Kf6 {[%emt 0:00:11]} 59. Nxb5 {[%emt 0:00:13]} Kxg7 {[%emt 0:00:04]} 60. Nc3 {[%emt 0:00:05]} Kf6 {[%emt 0:00:17]} 61. Nxa4 {[%emt 0:15:38]} Ke5 {[%emt 0:15:06]} 62. Kc3 {[%emt 0:00:39]} Kd6 {[%emt 0:00:35]} 63. Kc4 {[%emt 0:00:35]} e5 {[%emt 0:00:25]} 64. Nc3 {[%emt 0:00:31]} Nf5 {[%emt 0:00:27]} 65. a4 {[%emt 0:00:54]} Ne3+ {[%emt 0:00:36]} 66. Kb5 {[%emt 0:00:11]} Nc2 {[%emt 0:00:19]} 67. a5 {[%emt 0:00:59]} Kc7 {[%emt 0:00:48]} 68. Nd5+ {[%emt 0:01:05]} Kd6 {[%emt 0:00:28]} 69. a6 {[%emt 0:00:33]} Kxd5 {[%emt 0:01:00]} 1-0

[Event "FIDE Chesscom Grand Swiss 2019"]
[Site "Douglas-Isle of Man"]
[Date "2019.10.19"]
[Round "9.41"]
[White "Sebag, Marie"]
[Black "Wu, Li"]
[Result "1-0"]
[ECO "B31"]
[WhiteElo "2445"]
[BlackElo "2332"]
[Annotator "NA"]
[PlyCount "109"]
[EventDate "2019.10.10"]
[EventType "swiss"]
[EventCountry "GBR"]
[SourceTitle "playchess.com"]
[Source "ChessBase"]
[SourceQuality "1"]
[TimeControl "40/6000+30:20/3000+30:900+30"]

1. e4 {[%emt 0:00:00]} c5 {[%emt 0:00:00]} 2. Nf3 {[%emt 0:00:22]} Nc6 {[%emt 0:00:00]} 3. Bb5 {[%emt 0:00:30]} g6 {[%emt 0:00:18]} 4. Bxc6 {[%emt 0:00:25]} bxc6 {[%emt 0:00:13]} 5. O-O {[%emt 0:01:24]} Bg7 {[%emt 0:00:07]} 6. Re1 {[%emt 0:03:48]} Nf6 {[%emt 0:02:05]} 7. e5 {[%emt 0:03:19]} Nd5 {[%emt 0:00:21]} 8. d4 {[%emt 0:00:13]} cxd4 {[%emt 0:02:10]} 9. Qxd4 {[%emt 0:00:22]} f6 {[%emt 0:06:52]} 10. Qh4 {[%emt 0:17:48]} fxe5 {[%emt 0:23:27]} 11. Nxe5 {[%emt 0:01:26]} O-O {[%emt 0:06:56]} 12. c4 {[%emt 0:03:31]} Nf6 {[%emt 0:01:51]} 13. Bh6 {[%emt 0:04:28]} Qc7 {[%emt 0:22:11]} 14. Nc3 {[%emt 0:12:24]} d6 {[%emt 0:00:37]} 15. Nf3 {[%emt 0:01:55]} Bxh6 {[%emt 0:11:08]} 16. Qxh6 {[%emt 0:01:30]} Bg4 {[%emt 0:12:23]} 17. Ng5 {[%emt 0:05:34]} e5 {[%emt 0:00:04]} 18. h3 {[%emt 0:16:33]} Bd7 {[%emt 0:01:45]} 19. Rad1 {[%emt 0:09:52]} Rad8 {[%emt 0:00:08]} 20. Nce4 {[%emt 0:01:54]} Bf5 {[%emt 0:00:36]} 21. Nxf6+ {[%emt 0:06:42]} Rxf6 {[%emt 0:00:03]} 22. Re3 {[%emt 0:06:01]} Rdf8 {[%emt 0:03:25]} 23. c5 {[%emt 0:01:14]} Qg7 {[%emt 0:12:46]} 24. Qxg7+ {[%emt 0:01:40]} Kxg7 {[%emt 0:00:02]} 25. cxd6 {[%emt 0:01:18]} h6 {[%emt 0:01:08]} 26. Ne4 {[%emt 0:00:45]} Bxe4 {[%emt 0:00:06]} 27. Rxe4 {[%emt 0:00:05]} Rd8 {[%emt 0:00:13]} 28. Rxe5 {[%emt 0:00:10]} Rfxd6 {[%emt 0:00:05]} 29. Rxd6 {[%emt 0:00:08]} Rxd6 {[%emt 0:00:04]} 30. Re7+ {[%emt 0:00:03]} Kf6 {[%emt 0:00:04]} 31. Rxa7 {[%emt 0:00:03]} Rd1+ {[%emt 0:00:07]} 32. Kh2 {[%emt 0:00:04]} Rd2 {[%emt 0:00:04]} 33. b4 {[%emt 0:05:04]} Rxf2 {[%emt 0:00:04]} 34. Ra6 {[%emt 0:00:49]} Kf7 {[%emt 0:00:28]} 35. a4 {[%emt 0:00:41]} Rb2 {[%emt 0:02:57]} 36. Rb6 {[%emt 0:00:58]} Ra2 {[%emt 0:00:06]} 37. a5 {[%emt 0:00:17]} c5 {[%emt 0:00:06]} 38. bxc5 {[%emt 0:02:24]} Rxa5 {[%emt 0:00:04]} 39. Rc6 {[%emt 0:00:05]} Ra3 {[%emt 0:03:01]} 40. Rd6 {[%emt 0:00:25]} Rc3 {[%emt 0:00:05]} 41. c6 {[%emt 0:50:05]} h5 {[%emt 0:51:28]} 42. h4 {[%emt 0:00:00]} Kg7 {[%emt 0:00:00]} 43. Kg1 {[%emt 0:00:00]} Rc4 {[%emt 0:00:00]} 44. g3 {[%emt 0:00:00]} Rc2 {[%emt 0:00:00]} 45. Kf1 {[%emt 0:00:00]} Kf7 {[%emt 0:00:00]} 46. Ke1 {[%emt 0:00:00]} Rg2 {[%emt 0:16:19]} 47. Rd2 {[%emt 0:00:00]} Rxg3 {[%emt 0:00:00]} 48. Rc2 {[%emt 0:00:00]} Re3+ {[%emt 0:00:00]} 49. Kf2 {[%emt 0:00:00]} Re8 {[%emt 0:00:00]} 50. Kf3 {[%emt 0:00:00]} Rc8 {[%emt 0:00:00]} 51. Kf4 {[%emt 0:00:00]} Ke6 {[%emt 0:00:00]} 52. Kg5 {[%emt 0:00:00]} Kd6 {[%emt 0:00:00]} 53. Kxg6 {[%emt 0:00:00]} Kc7 {[%emt 0:00:00]} 54. Kxh5 {[%emt 0:00:00]} Rg8 {[%emt 0:00:00]} 55. Rc4 {[%emt 0:00:00]} 1-0

[Event "FIDE Chesscom Grand Swiss 2019"]
[Site "Douglas-Isle of Man"]
[Date "2019.10.19"]
[Round "9.42"]
[White "Nebolsina, Vera"]
[Black "Dahl, Baard"]
[Result "1/2-1/2"]
[ECO "B30"]
[WhiteElo "2252"]
[BlackElo "2067"]
[Annotator "NA"]
[PlyCount "81"]
[EventDate "2019.10.10"]
[EventType "swiss"]
[EventCountry "GBR"]
[SourceTitle "playchess.com"]
[Source "ChessBase"]
[SourceQuality "1"]
[TimeControl "40/6000+30:20/3000+30:900+30"]

1. e4 {[%emt 0:00:00]} c5 {[%emt 0:00:00]} 2. Nc3 {[%emt 0:00:04]} Nc6 {[%emt 0:00:06]} 3. Bb5 {[%emt 0:00:28]} Nd4 {[%emt 0:00:14]} 4. Nf3 {[%emt 0:00:10]} e6 {[%emt 0:00:55]} 5. O-O {[%emt 0:00:31]} a6 {[%emt 0:00:05]} 6. Bd3 {[%emt 0:00:26]} Ne7 {[%emt 0:00:14]} 7. Nxd4 {[%emt 0:00:17]} cxd4 {[%emt 0:00:07]} 8. Ne2 {[%emt 0:00:06]} d5 {[%emt 0:00:09]} 9. Re1 {[%emt 0:00:23]} dxe4 {[%emt 0:06:09]} 10. Bxe4 {[%emt 0:00:07]} Nc6 {[%emt 0:02:33]} 11. b3 {[%emt 0:01:08]} Bc5 {[%emt 0:03:09]} 12. Nf4 {[%emt 0:01:00]} Qe7 {[%emt 0:24:59]} 13. Nd3 {[%emt 0:06:56]} Bd6 {[%emt 0:01:53]} 14. Bb2 {[%emt 0:01:53]} Bd7 {[%emt 0:08:15]} 15. a4 {[%emt 0:06:13]} Qg5 {[%emt 0:07:36]} 16. b4 {[%emt 0:10:48]} O-O {[%emt 0:07:29]} 17. f4 {[%emt 0:01:30]} Bxf4 {[%emt 0:04:01]} 18. Nxf4 {[%emt 0:01:41]} Qxf4 {[%emt 0:00:06]} 19. b5 {[%emt 0:00:05]} axb5 {[%emt 0:00:17]} 20. axb5 {[%emt 0:00:05]} Rxa1 {[%emt 0:00:29]} 21. Qxa1 {[%emt 0:07:42]} Ne5 {[%emt 0:01:50]} 22. h3 {[%emt 0:00:11]} Qxd2 {[%emt 0:14:29]} 23. Bxd4 {[%emt 0:01:52]} f6 {[%emt 0:01:25]} 24. Bc3 {[%emt 0:16:38]} Qf4 {[%emt 0:01:16]} 25. Bxe5 {[%emt 0:10:10]} fxe5 {[%emt 0:00:06]} 26. Bd3 {[%emt 0:00:08]} Qf2+ {[%emt 0:11:10]} 27. Kh1 {[%emt 0:00:18]} Qd4 {[%emt 0:00:42]} 28. Qxd4 {[%emt 0:04:51]} exd4 {[%emt 0:00:02]} 29. Re4 {[%emt 0:00:09]} Rf5 {[%emt 0:03:11]} 30. Rxd4 {[%emt 0:03:05]} Rd5 {[%emt 0:00:05]} 31. Rb4 {[%emt 0:01:10]} b6 {[%emt 0:00:36]} 32. Kg1 {[%emt 0:01:37]} h6 {[%emt 0:00:46]} 33. Kf2 {[%emt 0:00:28]} Kf7 {[%emt 0:00:17]} 34. Ke3 {[%emt 0:00:41]} Ke7 {[%emt 0:00:28]} 35. h4 {[%emt 0:03:51]} Kd6 {[%emt 0:01:06]} 36. Rg4 {[%emt 0:05:50]} g5 {[%emt 0:05:02]} 37. c4 {[%emt 0:07:25]} Re5+ {[%emt 0:01:32]} 38. Kf3 {[%emt 0:07:28]} Kc5 {[%emt 0:00:35]} 39. hxg5 {[%emt 0:01:26]} hxg5 {[%emt 0:00:54]} 40. Re4 {[%emt 0:09:28]} Rxe4 {[%emt 0:04:09]} 41. Kxe4 {[%emt 0:50:39]} 1/2-1/2